Cogmind - Beta 16 @@@ ROGUE MODE // 2025.11.13 @ 19:34:27 Player: jumpy Result: Destroyed by Y-54 Guardian with Flak Gun Performance ------------- Evolutions (3) 1500 Regions Visited (4) 800 Robots Destroyed (35) 175 Value Destroyed (1037) 1037 Prototype IDs (4) 80 Alien Tech Used (0) 0 Bonus (0) 0 TOTAL SCORE: 3592 Bonus ------- None Cogmind --------- Core Integrity 0/700 Matter 260/300 Energy 31/160 System Corruption 0% Temperature Cool (24) Movement Core (1600) Ox31 Location -7/Factory Parts ------- > --- POWER (1) -------- Light Nuclear Core > --- PROPULSION (4) --- (None) > --- UTILITY (5) ------ Huge Storage Unit > --- WEAPON (3) ------- Cooled Particle Cannon Spear > --- INVENTORY (25) --- Light Treads Medium Treads Medium Treads Medium Treads Improved Terrain Scanner Layered Light Armor Plating Hacking Suite Medium Laser Minigun Rocket Launcher Improved Datajack Mining Laser Peak State ------------ > --- POWER ------------ Light Nuclear Core > --- PROPULSION ------- Medium Treads Medium Treads Medium Treads Medium Treads > --- UTILITY ---------- Advanced Heat Sink Huge Storage Unit Advanced Visual Processing Unit Seismic Detector System Restoration Module > --- WEAPON ----------- Particle Gun Particle Gun Heavy Assault Rifle > --- INVENTORY -------- Light Nuclear Core Light Nuclear Core Medium Treads Medium Treads Medium Treads Wheel Wheel Improved Heat Sink Improved Terrain Scanner Layered Light Armor Plating Layered Light Armor Plating Hacking Suite Medium Laser Medium Laser Heavy Laser Cooled Particle Cannon Minigun Rocket Launcher Improved Datajack Mining Laser Spear [Rating: 45] Favorites ----------- Power Ion Engine Engine Ion Engine Power Core Light Nuclear Core Propulsion Light Treads Treads Light Treads Wheel Wheel Utility Seismic Detector Device Seismic Detector Storage High-capacity Storage Unit Processor Advanced Visual Processing Unit Protection Light Armor Plating Weapon Medium Laser Energy Gun Medium Laser Energy Cannon Cooled Particle Cannon Ballistic Gun Heavy Assault Rifle Piercing Weapon Spear Build | -11 -10 -9 -8 -7 ------- Run | Yrd Mat Mat Mat Fac Slots Evolved 6 | . . 2 2 2 Power . | . . . . . Propulsion 2 | . . . 1 1 Utility 3 | . . 1 1 1 Weapon 1 | . . 1 . . Parts Attached 48 | 7 2 4 16 19 Power 6 | 1 . . 3 2 Engine 2 | 1 . . 1 . Core 4 | . . . 2 2 Reactor . | . . . . . Propulsion 12 | 2 . . 5 5 Treads 10 | 2 . . 4 4 Leg . | . . . . . Wheel 2 | . . . 1 1 Hover . | . . . . . Flight . | . . . . . Utility 16 | 2 1 2 6 5 Device 8 | 1 . 1 4 2 Storage 4 | 1 1 1 . 1 Processor 1 | . . . . 1 Hackware . | . . . . . Protection 3 | . . . 2 1 Artifact . | . . . . . Weapon 14 | 2 1 2 2 7 Energy Gun 8 | . 1 1 2 4 Energy Cannon 1 | . . . . 1 Ballistic Gun 4 | 2 . 1 . 1 Ballistic Cannon . | . . . . . Launcher . | . . . . . Special Weapon . | . . . . . Impact Weapon . | . . . . . Slashing Weapon . | . . . . . Piercing Weapon 1 | . . . . 1 Special Melee Weapon . | . . . . . Unidentified Prototypes 1 | . . . . 1 Parts Lost 33 | . . . 11 22 Power 3 | . . . 1 2 Propulsion 12 | . . . 4 8 Utility 8 | . . . 3 5 Weapon 10 | . . . 3 7 Highest Loss Streak 18 | . . . 8 18 To Critical Strikes . | . . . . . Average Backups 13 | 4 8 12 15 15 Power 1 | . 1 1 1 1 Propulsion 3 | 1 2 3 4 5 Utility 2 | 1 2 2 2 2 Weapon 5 | 1 3 5 6 5 Tool/Special . | . . . . . Unused Backups 17 | 1 2 . 1 13 Power 1 | . . . 1 . Propulsion 4 | . . . . 4 Utility 4 | 1 . . . 3 Weapon 7 | . 2 . . 5 Tool/Special 1 | . . . . 1 Average Slot Usage (%) 91 | . 100 90 92 88 Engine 6 | . 14 11 4 3 Core 2 | . . . 4 3 Treads 25 | . 28 22 26 26 Device 14 | . 14 13 15 14 Storage 9 | . 14 11 9 7 Processor 2 | . . . . 5 Protection 3 | . . . 4 5 Energy Gun 13 | . 9 22 16 10 Ballistic Gun 10 | . 18 11 10 7 Peak Build Rating 45 | 8 8 11 25 45 Average Rating 20 | 6 7 9 15 35 On Entrance 9 | . 7 8 11 22 Avg Prop Armor Cover (%) . | . . . . . Naked Turns . | . . . . . Heaviest Build 97 | 14 30 54 63 97 Greatest Support 112 | 40 40 40 60 112 Greatest Overweight (x) 8 | . . 1 1 8 Average Overweight (x) . | . . . . . Largest Inventory Capacity 25 | 8 15 20 20 25 Average Capacity 17 | 7 11 17 20 20 Most Carried 22 | 8 12 15 20 22 Average Carried 13 | 5 8 12 16 15 Final Capacity 25 | 8 15 20 20 25 Final Carried 15 | 7 12 15 12 12 Class Distribution -------------------- 32% | Scavenger-Tank 26% | Mutant 20% | Gunner 12% | Scavenger-Mutant 5% | Scavenger-Skirmisher Dominant Class ---------------- Mutant | -10/Materials Gunner | -9/Materials Scavenger-Tank | -8/Materials Scavenger-Tank | -7/Factory Resources | -11 -10 -9 -8 -7 ----------- Run | Yrd Mat Mat Mat Fac Matter Collected 961 | 342 84 74 198 263 Remotely . | . . . . . Salvage Created 1531 | 187 124 259 379 582 Parts 82 | 20 3 14 18 27 Haulers Intercepted 3 | . 1 1 . 1 Recyclers Shooed 1 | 1 . . . . Parts Field Recycled . | . . . . . Retrieved Matter . | . . . . . Parts Self-Destructed . | . . . . . Prevented . | . . . . . Parts Restored . | . . . . . Kills | -11 -10 -9 -8 -7 ------- Run | Yrd Mat Mat Mat Fac Combat Hostiles Destroyed 20 | . 2 2 7 9 Melee 1 | . . . 1 . Guns 17 | . 2 2 5 8 Classes Destroyed 13 | 2 2 2 3 4 Worker 1 | . . . 1 . Builder 1 | . . . 1 . Tunneler 5 | 5 . . . . Hauler 3 | . 1 1 . 1 Recycler 3 | 1 . 1 . 1 Operator 1 | . . 1 . . Watcher 1 | . . . . 1 Swarmer 1 | . . . . 1 Grunt 9 | . 2 1 4 2 Duelist 1 | . . . . 1 Sentry 6 | . . 1 2 3 Hunter 2 | . . . 1 1 Programmer 1 | . . . . 1 Best Kill Streak 5 | 5 1 2 4 3 Combat Bots Only 3 | . 1 2 2 3 Max Kills in Single Turn 2 | 1 1 1 2 2 Gunslinging 1 | . . . . 1 Exploded . | . . . . . Melee 1 | . . . 1 . Uniques/NPCs Destroyed . | . . . . . Combat | -11 -10 -9 -8 -7 -------- Run | Yrd Mat Mat Mat Fac Hostile Shots Fired 598 | . 22 4 101 471 Missed 177 | . 7 3 21 146 Hits 421 | . 15 1 80 325 Melee 4 | . . . . 4 Projectile 417 | . 15 1 80 321 Critical Strikes 8 | . . . 3 5 Damage Taken 4326 | . 164 10 1287 2865 Core 908 | . 34 10 161 703 Absorbed by Shields . | . . . . . Core Remaining (%) 88 | 100 86 97 70 . Volleys Fired 110 | 18 17 11 25 39 Largest 3 | 2 2 3 3 3 Hottest 184 | 40 70 123 123 184 Shots Fired 266 | 36 34 33 61 102 Gun 265 | 36 34 33 61 101 Cannon 1 | . . . . 1 Launcher . | . . . . . Special . | . . . . . Kinetic 135 | 36 20 11 25 43 Thermal 131 | . 14 22 36 59 Explosive . | . . . . . Electromagnetic . | . . . . . Robot Hit Streak 14 | 6 5 8 14 11 Robot Miss Streak 3 | 3 2 3 2 2 Penetration Max . | . . . . . Secondary Targets 2 | . . . 1 1 Max Gunslinging Chain 1 | . . . 1 1 Shots Hit Robots 182 | 20 20 20 48 74 Core Hits 74 | 9 8 10 18 29 Critical Kills . | . . . . . Critical Parts Destroyed . | . . . . . Critical Strikes 5 | . 1 1 1 2 Burn 5 | . 1 1 1 2 Melee Attacks 2 | . . . . 2 Impact . | . . . . . Slashing . | . . . . . Piercing 2 | . . . . 2 Sneak Attacks . | . . . . . Combat Hostiles . | . . . . . Follow-up Attacks . | . . . . . Damage Inflicted 2697 | 191 263 272 665 1306 Guns 2519 | 191 249 268 648 1163 Cannons 52 | . . . . 52 Explosions . | . . . . . Melee 56 | . . . . 56 Ramming 70 | . 14 4 17 35 Kinetic 1228 | 191 163 101 269 504 Thermal 1343 | . 86 167 379 711 Explosive . | . . . . . Electromagnetic . | . . . . . Impact . | . . . . . Slashing . | . . . . . Piercing 56 | . . . . 56 Highest Corruption 1 | . . . . 1 Average Corruption 1 | . . . . 1 Corruption Purged 1 | . . . . 1 Corruption Blocked . | . . . . . Effects 1 | . . . . 1 Heat Flow Errors 1 | . . . . 1 Overload Shots 1 | . . . . 1 Overflow Damage . | . . . . . Projectiles . | . . . . . Explosions . | . . . . . Melee . | . . . . . Knockbacks . | . . . . . Impact . | . . . . . Kinetic . | . . . . . Secondary . | . . . . . Self-Inflicted Damage . | . . . . . Shots . | . . . . . Rammed 17 | . 2 1 9 5 Targets Rammed 17 | . 2 1 9 5 Kicked . | . . . . . Crushed . | . . . . . Highest Temperature 485 | . 90 193 369 485 Average Temperature 125 | . 33 87 153 153 Received Heat Transfer 1626 | . 90 6 675 855 Effects 7 | . . . 2 5 Interference 6 | . . . 2 4 Short Circuit 1 | . . . . 1 Siege Activations . | . . . . . Martial Activations . | . . . . . Shielding Activations . | . . . . . Robots Disrupted . | . . . . . Combat Hostiles . | . . . . . Robots Corrupted . | . . . . . Combat Hostiles . | . . . . . Parts Fried . | . . . . . Impact Corruptions . | . . . . . Robots Melted 2 | . . . 1 1 Combat Hostiles 2 | . . . 1 1 Parts Melted 13 | . . 1 5 7 Heat Transferred 3750 | . 333 555 1184 1678 Parts Sabotaged . | . . . . . Parts Stolen . | . . . . . Parts Stripped . | . . . . . Power Chain Reactions . | . . . . . Alert | -11 -10 -9 -8 -7 ------- Run | Yrd Mat Mat Mat Fac Maximum Alert Level . | . . . . . Low Security (%) 100 | 100 100 100 100 100 Level 1 . | . . . . . Level 2 . | . . . . . Level 3 . | . . . . . Level 4 . | . . . . . Level 5 . | . . . . . High Security . | . . . . . Max Security . | . . . . . Peak Influence 70 | 10 45 50 70 46 Initial . | . . . . . Average 9 | 1 8 11 13 10 Influence Increases 689 | 30 72 83 235 269 Destroy 0b10 Robot/C 400 | . 40 40 140 180 Destroy 0b10 Robot/NC 75 | 30 5 15 10 15 Destroy Leader 108 | . 12 12 40 44 Successful Hack 30 | . . 16 . 14 Destroy Structure 1 | . . . . 1 Lose Combat Pursuer 75 | . 15 . 45 15 Influence Decreases 689 | 30 72 83 235 269 Time Decay 464 | 30 72 83 128 151 Lost Part 225 | . . . 107 118 Squads Dispatched 5 | . 2 . 1 2 Investigation 2 | . 1 . 1 . Extermination 2 | . . . . 2 Reinforcement 1 | . 1 . . . Assault . | . . . . . Garrison . | . . . . . Intercept . | . . . . . Searches Triggered . | . . . . . Construction Impeded . | . . . . . Haulers Reinforced . | . . . . . Active Scanning Responses . | . . . . . Cargo Convoy Interrupts . | . . . . . Stealth | -11 -10 -9 -8 -7 --------- Run | Yrd Mat Mat Mat Fac Distress Signals 5 | . . 1 2 2 Communications Jammed . | . . . . . Distress Signals . | . . . . . Times Spotted 47 | . 10 8 12 17 Peak Tracking Total 6 | . 6 3 5 6 Tactical Retreats 3 | . 1 . 1 1 Traps | -11 -10 -9 -8 -7 ------- Run | Yrd Mat Mat Mat Fac Traps Triggered 4 | . 2 . 1 1 Indirectly . | . . . . . Trap Hack Attempts . | . . . . . Triggered . | . . . . . Disarmed . | . . . . . Reprogrammed . | . . . . . Reused . | . . . . . Traps Extracted . | . . . . . Installed . | . . . . . Triggered . | . . . . . Machines | -11 -10 -9 -8 -7 ---------- Run | Yrd Mat Mat Mat Fac Machines Disabled . | . . . . . Max in Single Turn . | . . . . . Machines Repaired . | . . . . . Machines Dismantled . | . . . . . Machines Sabotaged . | . . . . . Overloaded Fab Kills . | . . . . . Hacking | -11 -10 -9 -8 -7 --------- Run | Yrd Mat Mat Mat Fac Machines Accessed 6 | . 3 2 . 1 Terminals 6 | . 3 2 . 1 Fabricators . | . . . . . Repair Stations . | . . . . . Recycling Units . | . . . . . Scanalyzers . | . . . . . Garrison Access . | . . . . . Total Hacks 20 | . 6 13 . 1 Successful 9 | . 1 7 . 1 Failed 11 | . 5 6 . . Catastrophic 2 | . 2 . . . Database Lockouts . | . . . . . Manual 17 | . 6 11 . . Terminals 20 | . 6 13 . 1 Fabricators . | . . . . . Repair Stations . | . . . . . Recycling Units . | . . . . . Scanalyzers . | . . . . . Garrison Access . | . . . . . Terminal Hacks 7 | . 1 5 . 1 Part Schematic 1 | . 1 . . . Robot Schematic 1 | . . 1 . . Robot Analysis 3 | . . 3 . . Prototype ID Bank 1 | . . . . 1 Locate Traps 1 | . . 1 . . Fabricator Hacks . | . . . . . Repair Station Hacks . | . . . . . Recycling Unit Hacks . | . . . . . Scanalyzer . | . . . . . Garrison Access Hacks . | . . . . . Unauthorized Hacks 2 | . . 2 . . Terminals 2 | . . 2 . . Botnet 1 | . . 1 . . Skim 1 | . . 1 . . Fabricators . | . . . . . Repair Stations . | . . . . . Recycling Units . | . . . . . Scanalyzers . | . . . . . Garrison Access . | . . . . . Data Cores Recovered 1 | . . 1 . . Used 1 | . . 1 . . Hacking Detections 6 | . 3 2 . 1 Full Trace Events . | . . . . . Feedback Events . | . . . . . Feedback Blocked . | . . . . . Robot Schematics Acquired 1 | . . 1 . . Robots Built . | . . . . . Authchips . | . . . . . Time . | . . . . . Total Robot Build Rating . | . . . . . Part Schematics Acquired 1 | . 1 . . . Parts Built . | . . . . . Authchips . | . . . . . Time . | . . . . . Total Part Build Rating . | . . . . . Part Studies Acquired . | . . . . . Parts Repaired . | . . . . . Time . | . . . . . Parts Recycled . | . . . . . Recycled Matter . | . . . . . Retrieved Matter . | . . . . . Retrieved Components . | . . . . . Parts Scanalyzed . | . . . . . Part Schematics Acquired . | . . . . . Parts Damaged . | . . . . . Bothacking | -11 -10 -9 -8 -7 ------------ Run | Yrd Mat Mat Mat Fac Used RIF Installer . | . . . . . Robots Hacked . | . . . . . Non-combat . | . . . . . Combat . | . . . . . Robot Hacks Applied . | . . . . . Relay Couplers Released . | . . . . . Fabnet Peak Effective % . | . . . . . Robots Rewired . | . . . . . Allies Hacked . | . . . . . Hacks Repelled . | . . . . . Allies | -11 -10 -9 -8 -7 -------- Run | Yrd Mat Mat Mat Fac Total Allies . | . . . . . Largest Group . | . . . . . Highest-Rated Group . | . . . . . Highest-Rated Ally . | . . . . . Total Orders . | . . . . . Ally Attacks . | . . . . . Total Damage . | . . . . . Kills . | . . . . . Allies Corrupted . | . . . . . Allies Melted . | . . . . . Intel | -11 -10 -9 -8 -7 ------- Run | Yrd Mat Mat Mat Fac Active Infowar (turns) 2170 | 174 319 324 502 851 Optics 718 | . . . . 718 Sensors 118 | . . . 118 . Seismic 2066 | 174 319 324 439 810 Robot Analysis Total 3 | . . 3 . . Derelict Logs Recovered . | . . . . . Drone Launches . | . . . . . Drone Recoveries . | . . . . . Exploration | -11 -10 -9 -8 -7 ------------- Run | Yrd Mat Mat Mat Fac Turns Passed 2305 | 251 319 324 502 909 Spaces Moved 1029 | 123 152 150 201 403 Core 14 | 14 . . . . Treads 1014 | 109 152 150 201 402 Legs . | . . . . . Wheels 1 | . . . . 1 Hover . | . . . . . Flight . | . . . . . Fastest Speed 50 | 50 160 160 160 160 Average Speed 166 | 147 160 186 164 169 Slowest Speed 240 | 160 160 240 240 240 Overloaded Moves . | . . . . . Propulsion Burnouts . | . . . . . Robots Hopped . | . . . . . Potential Cave-ins . | . . . . . Cave-ins Triggered . | . . . . . Exploration Rate (%) 17 | 5 28 21 25 10 Regions Visited 4 Branch Regions . Pre-discovered Areas . | . . . . . Known Exits Taken . | . . . . . Unknown Exits Taken 4 | 1 1 1 1 . Scrap Searched . | . . . . . Spaces Dug . | . . . . . Terrain Destroyed . | . . . . . Melee . | . . . . . Projectile . | . . . . . AOE . | . . . . . Terrain Rammed . | . . . . . Walls Destroyed . | . . . . . Machines Disabled . | . . . . . Actions | -11 -10 -9 -8 -7 --------- Run | Yrd Mat Mat Mat Fac Total 1356 | 157 194 169 310 526 Wait 88 | 1 8 . 50 29 Move 1026 | 122 151 149 201 403 Hop . | . . . . . Pick Up 39 | 8 8 3 5 15 Fast Attach 24 | 7 2 2 5 8 Attach 22 | . . 1 8 13 Detach . | . . . . . Swap 14 | . 2 1 4 7 Drop 15 | 1 4 1 4 5 Fire 110 | 18 17 11 25 39 Melee 2 | . . . . 2 Ram 1 | . . . . 1 Kick . | . . . . . Crush 15 | . 2 1 8 4 Escape Stasis . | . . . . . Rewire . | . . . . . Trap . | . . . . . Miscellaneous . | . . . . . Route ------- -11/Scrapyard -10/Materials -9/Materials -8/Materials -7/Factory History --------- Turn | Location | Event 4 | -11/Scrapyard | Discovered new exit (range 16) 252 | -11/Scrapyard | Entered Materials 310 | -10/Materials | Build established: Mutant 552 | -10/Materials | Discovered new exit (range 13) 571 | -10/Materials | Entered another Materials area 571 | -9/Materials | Evolved 2 slots: Utility x1, Weapon x1 859 | -9/Materials | Build established: Gunner 866 | -9/Materials | Discovered new exit (range 13) 895 | -9/Materials | Entered another Materials area 895 | -8/Materials | Evolved 2 slots: Propulsion x1, Utility x1 1186 | -8/Materials | Discovered new exit (range 15) 1356 | -8/Materials | Lost 8 parts (1p3n2u2w) 1397 | -8/Materials | Entered Factory 1397 | -7/Factory | Evolved 2 slots: Propulsion x1, Utility x1 1807 | -7/Factory | Lost 4 parts (2n2w) 2098 | -7/Factory | Build established: Scavenger-Tank 2288 | -7/Factory | Core integrity fell below 50% 2301 | -7/Factory | Core integrity fell below 20% 2306 | -7/Factory | Destroyed by Y-54 Guardian with Flak Gun Last Messages --------------- 02275_ Slammed into Y-54 Guardian. 02275_ Imp. Heat Sink broken. 02275_ Destabilizing: Short circuit. 02278_ R-06 Scavenger collects Imp. Light Armor Plating. 02280_ Med. Laser destroyed. 02280_ R-06 Scavenger destroyed. 02281_ R-06 Scavenger collects Lgt. Treads. 02281_ Lgt. Nuclear Core destroyed. 02281_ K-01 Serf collects debris. 02281_ R-06 Scavenger collects Lgt. Treads. 02283_ R-06 Scavenger collects Com. Wheel. 02284_ Broken Imp. Heat Sink destroyed. 02285_ R-06 Scavenger collects Lgt. Ion Engine. 02286_ R-06 Scavenger collects Tractor Beam. 02287_ Lyr. Light Armor Plating destroyed. 02287_ Hvy. Laser destroyed. 02289_ R-06 Scavenger collects Lgt. Treads. 02293_ K-01 Serf collects debris. 02297_ Wheel destroyed. 02306_ K-01 Serf destroyed. Map ----- +----------------------------------------------------+ | ?????????????????????????????????????????????????? | | ?????????????????????????????????????????????????? | | ?????????????????????????????????????????????????? | | ?????????????????????????????????????????????????? | | ?????????????????????????????????????????????????? | | ?????????????????????????????????????????????????? | | ?????????????????????????????????????????????????? | | ?????????????????????????????????????????????????? | | ?????????????????????????????????????????????????? | | ?????????????????????????????????????????????????? | | ?????????????????????????????????????????????????? | | ?????????????????????????????????????????????????? | | ?????????????????????????????????????????????????? | | ?????????????????????????????????????????????????? | | ?????????????????????????????????????????????????? | | ?????????????????????????????????????????????????? | | ?????????????????????????????????????????????????? | | ?????????????????????????????????????????????????? | | ?????????????????????????????????????????????????? | | ###??????????????????????????????????????????????? | | ??????????????????????????????????????????????? | | #??????????????????########????????????????????? | | #??????????????????# [ #????????????????????? | | #??????????????????# Y#????????????????????? | | #??????????????????# #????????????????????? | | #??????????????????# @[ #????????????????????? | | #????????????#####?# != #????????????????????? | | #????????????# #Y%%%* #????????????????????? | | ####?????????# #/##+##### ####?????????????? | | ? #?????????# +%% ????? | | #??# #?????????# #### #####+####?????????????? | | #??# #?????????# ???# #??????????????????????? | | ####+######????# ??### ###????????????????????? | | # #????# ??# #????????????????????? | | # %"""" ############# #????????????????????? | | # ! """" + % % #????????????????????? | | # % """" ############# #????????????????????? | | + *"""" #???????????# #????????????????????? | | # """" #???????????## ##????????????????????? | | # """" #????????????# #?????????????????????? | | # #????????????# #?????????????????????? | | ###########????????????# #?????????????????????? | | #??????????????????????# #?????????????????????? | | #?????????????????????? !?????????????????????? | | #?????????????????????? ????????????????????? | | #?????????????????????? ????????????????????? | | #?????????????????????? ???????????????????? | | +?????????????????????? !## ??????????????????? | | #??????????????????????##+###? ??????????????????? | | #?????????????????????????????? ?????????????????? | +----------------------------------------------------+ Best States ------------- Heat Dissipation 53 Energy Generation 18 Energy Capacity 250 Matter Stores 300 Matter Capacity 300 Sight Range 20 Robot Scan Range 15 Terrain Scan Density 10 Armor Coverage 150 Evasion (%) 50 Recoil Reduction 7 Item Schematics ----------------- Hcp. Storage Unit | -10/Materials | Hacked Robot Schematics ------------------ M-13 Machinist | -9/Materials | Hacked Fabricated ------------ Nothing Repaired ---------- Nothing Studied --------- None Alien Tech Used ----------------- None Achievements -------------- None Challenges ------------ None Game ------ Seed ReactionSupersonicBlaster Manual? 1 Play Time 00:13:27 Cumulative 277.2 hours Start 2025.11.13 @ 19:22:02 End 2025.11.13 @ 19:34:27 Sessions 1 Manual Loads 0 Difficulty Rogue Special Mode None Game No. 599 Rogue 599 Adventurer 0 Explorer 0 Win Type - Total 20 Types 14/0/4/1/1/0/0/0/0/0 Lore% 80 Gallery% 71 Achievement% 49 Wizard Run 0 Options --------- Layout 0 ASCII 0 Keyboard 0 Movement Numpad Keybinds 0 Fullscreen 2 Font 18/Terminus Map View 76x50 Zoom Use 0% Tactical HUD 1 Map Filters NONE Filters SATURATION(100) Steam 1 RUN: de4a1ac2-2116-472d-86bf-0ec4b618688c